[Event "Titled Tuesday Blitz December 27 Late 2022"]
[White "Kamsky, Gata"]
[Black "Xiong, Jeffery"]
[WhiteFideId "2000024"]
[BlackFideId "2047640"]
[WhiteElo "2665"]
[BlackElo "2692"]
[Result "1/2-1/2"]
[Round "07"]
[TimeControl "180+2"]
[Date "2022.12.27"]
[WhiteClock "0:00:46"]
[BlackClock "0:00:41"]

1. e4 {[%clk 0:03:00]}  e6 {[%clk 0:02:57]} 2. d4 {[%clk 0:02:56]}  d5 {[%clk 0:02:56]} 3. Nc3 {[%clk 0:02:56]}  Nf6 {[%clk 0:02:55]} 4. e5 {[%clk 0:02:56]}  Nfd7 {[%clk 0:02:56]} 5. f4 {[%clk 0:02:57]}  c5 {[%clk 0:02:56]} 6. Nf3 {[%clk 0:02:57]}  Nc6 {[%clk 0:02:57]} 7. Be3 {[%clk 0:02:56]}  cxd4 {[%clk 0:02:57]} 8. Nxd4 {[%clk 0:02:55]}  Qb6 {[%clk 0:02:58]} 9. Qd2 {[%clk 0:02:50]}  Qxb2 {[%clk 0:02:58]} 10. Rb1 {[%clk 0:02:51]}  Qa3 {[%clk 0:02:58]} 11. Bb5 {[%clk 0:02:51]}  Nxd4 {[%clk 0:02:58]} 12. Bxd4 {[%clk 0:02:51]}  a6 {[%clk 0:02:58]} 13. Bxd7+ {[%clk 0:02:49]}  Bxd7 {[%clk 0:02:59]} 14. Rb3 {[%clk 0:02:49]}  Qe7 {[%clk 0:02:59]} 15. Rxb7 {[%clk 0:02:49]}  Qh4+ {[%clk 0:03:00]} 16. Qf2 {[%clk 0:02:43]}  Qxf2+ {[%clk 0:02:58]} 17. Kxf2 {[%clk 0:02:43]}  Be7 {[%clk 0:02:51]} 18. Rhb1 {[%clk 0:02:42]}  Bd8 {[%clk 0:02:35]} 19. Ke3 {[%clk 0:02:35]}  Bc6 {[%clk 0:02:30]} 20. Rb8 {[%clk 0:02:33]}  Rxb8 {[%clk 0:02:28]} 21. Rxb8 {[%clk 0:02:32]}  Kd7 {[%clk 0:02:29]} 22. g3 {[%clk 0:02:21]}  Re8 {[%clk 0:02:19]} 23. Bb6 {[%clk 0:02:08]}  Be7 {[%clk 0:02:09]} 24. Rxe8 {[%clk 0:02:07]}  Kxe8 {[%clk 0:02:10]} 25. Kd4 {[%clk 0:02:06]}  f6 {[%clk 0:01:58]} 26. Bc5 {[%clk 0:02:03]}  fxe5+ {[%clk 0:01:58]} 27. fxe5 {[%clk 0:02:03]}  Bg5 {[%clk 0:01:59]} 28. Ne2 {[%clk 0:01:51]}  Bb5 {[%clk 0:01:58]} 29. Nf4 {[%clk 0:01:51]}  Kf7 {[%clk 0:01:53]} 30. h4 {[%clk 0:01:49]}  Bh6 {[%clk 0:01:19]} 31. Bb4 {[%clk 0:01:34]}  g5 {[%clk 0:01:18]} 32. hxg5 {[%clk 0:01:30]}  Bxg5 {[%clk 0:01:18]} 33. Ke3 {[%clk 0:01:15]}  Ke8 {[%clk 0:01:03]} 34. a3 {[%clk 0:00:58]}  Kd7 {[%clk 0:01:03]} 35. Kd4 {[%clk 0:00:55]}  Ba4 {[%clk 0:00:59]} 36. c4 {[%clk 0:00:49]}  dxc4 {[%clk 0:01:00]} 37. Kxc4 {[%clk 0:00:49]}  Bb5+ {[%clk 0:01:00]} 38. Kd4 {[%clk 0:00:49]}  Bd8 {[%clk 0:00:56]} 39. Nh5 {[%clk 0:00:47]}  Ke8 {[%clk 0:00:45]} 40. Nf6+ {[%clk 0:00:46]}  Bxf6 {[%clk 0:00:40]} 41. exf6 {[%clk 0:00:46]}  Kf7 {[%clk 0:00:41]} 42. Ke5 {[%clk 0:00:46]}  h5 {[%clk 0:00:41]} 1/2-1/2


[Site "https://www.chess.com"]

[Event "Titled Tuesday Blitz December 27 Late 2022"]
[White "Karacsonyi, Gellert"]
[Black "Rasulov, Vugar"]
[WhiteFideId "764620"]
[BlackFideId "13402390"]
[WhiteElo "2385"]
[BlackElo "2523"]
[Result "0-1"]
[Round "07"]
[TimeControl "180+2"]
[Date "2022.12.27"]
[WhiteClock "0:00:01"]
[BlackClock "0:00:21"]

1. e4 {[%clk 0:03:00]}  e5 {[%clk 0:02:56]} 2. Nf3 {[%clk 0:02:59]}  Nc6 {[%clk 0:02:56]} 3. Bb5 {[%clk 0:02:57]}  a6 {[%clk 0:02:56]} 4. Bxc6 {[%clk 0:02:57]}  dxc6 {[%clk 0:02:57]} 5. O-O {[%clk 0:02:58]}  Bg4 {[%clk 0:02:55]} 6. h3 {[%clk 0:02:58]}  Bxf3 {[%clk 0:02:55]} 7. Qxf3 {[%clk 0:02:58]}  Qd7 {[%clk 0:02:56]} 8. d3 {[%clk 0:02:54]}  f6 {[%clk 0:02:55]} 9. Be3 {[%clk 0:02:53]}  h5 {[%clk 0:02:55]} 10. Nd2 {[%clk 0:02:52]}  g5 {[%clk 0:02:54]} 11. Qe2 {[%clk 0:02:19]}  Ne7 {[%clk 0:02:54]} 12. Nc4 {[%clk 0:02:15]}  Ng6 {[%clk 0:02:51]} 13. Rad1 {[%clk 0:02:15]}  Qe6 {[%clk 0:02:39]} 14. d4 {[%clk 0:02:03]}  exd4 {[%clk 0:02:40]} 15. Rxd4 {[%clk 0:01:56]}  g4 {[%clk 0:02:37]} 16. hxg4 {[%clk 0:01:29]}  hxg4 {[%clk 0:02:38]} 17. f4 {[%clk 0:01:29]}  gxf3 {[%clk 0:02:29]} 18. Qxf3 {[%clk 0:01:26]}  Bc5 {[%clk 0:02:06]} 19. Rd3 {[%clk 0:01:20]}  Bxe3+ {[%clk 0:02:03]} 20. Rxe3 {[%clk 0:00:54]}  O-O-O {[%clk 0:01:52]} 21. Qf5 {[%clk 0:00:52]}  Rde8 {[%clk 0:01:46]} 22. Qxe6+ {[%clk 0:00:48]}  Rxe6 {[%clk 0:01:46]} 23. b3 {[%clk 0:00:47]}  Rd8 {[%clk 0:01:40]} 24. Rg3 {[%clk 0:00:47]}  Ne7 {[%clk 0:01:36]} 25. Rgf3 {[%clk 0:00:43]}  Rxe4 {[%clk 0:01:32]} 26. Rxf6 {[%clk 0:00:43]}  b6 {[%clk 0:01:26]} 27. R6f4 {[%clk 0:00:43]}  Re2 {[%clk 0:01:24]} 28. R4f2 {[%clk 0:00:43]}  Rxf2 {[%clk 0:01:25]} 29. Rxf2 {[%clk 0:00:43]}  Nd5 {[%clk 0:01:23]} 30. g4 {[%clk 0:00:41]}  Rg8 {[%clk 0:01:22]} 31. Rg2 {[%clk 0:00:41]}  Nf4 {[%clk 0:01:22]} 32. Rd2 {[%clk 0:00:37]}  Rxg4+ {[%clk 0:01:22]} 33. Kf2 {[%clk 0:00:38]}  Rg2+ {[%clk 0:01:17]} 34. Kf3 {[%clk 0:00:32]}  Rxd2 {[%clk 0:01:17]} 35. Nxd2 {[%clk 0:00:33]}  Nd5 {[%clk 0:01:17]} 36. a3 {[%clk 0:00:33]}  Kd7 {[%clk 0:01:17]} 37. Ke4 {[%clk 0:00:32]}  Ke6 {[%clk 0:01:14]} 38. Kd3 {[%clk 0:00:32]}  Nf4+ {[%clk 0:01:14]} 39. Kc3 {[%clk 0:00:32]}  Kd5 {[%clk 0:01:13]} 40. Kb2 {[%clk 0:00:32]}  Ne6 {[%clk 0:01:12]} 41. Nf3 {[%clk 0:00:31]}  c5 {[%clk 0:01:12]} 42. Nd2 {[%clk 0:00:31]}  Nd4 {[%clk 0:01:11]} 43. Nc4 {[%clk 0:00:30]}  Nf3 {[%clk 0:01:11]} 44. Ne3+ {[%clk 0:00:30]}  Ke4 {[%clk 0:01:11]} 45. Ng4 {[%clk 0:00:30]}  Kd5 {[%clk 0:01:05]} 46. a4 {[%clk 0:00:28]}  Ne5 {[%clk 0:01:04]} 47. Nf6+ {[%clk 0:00:28]}  Ke6 {[%clk 0:01:04]} 48. Ne4 {[%clk 0:00:28]}  Nc6 {[%clk 0:01:02]} 49. Ng5+ {[%clk 0:00:27]}  Kd5 {[%clk 0:01:02]} 50. Nf3 {[%clk 0:00:26]}  c4 {[%clk 0:00:59]} 51. Ng5 {[%clk 0:00:25]}  Nd4 {[%clk 0:00:58]} 52. Nh7 {[%clk 0:00:22]}  Ne2 {[%clk 0:00:55]} 53. Nf6+ {[%clk 0:00:21]}  Ke6 {[%clk 0:00:56]} 54. Ne4 {[%clk 0:00:20]}  Ke5 {[%clk 0:00:55]} 55. Ng5 {[%clk 0:00:14]}  c3+ {[%clk 0:00:55]} 56. Kb1 {[%clk 0:00:15]}  Kd5 {[%clk 0:00:54]} 57. Nf3 {[%clk 0:00:14]}  Nd4 {[%clk 0:00:50]} 58. Ne1 {[%clk 0:00:13]}  Nf3 {[%clk 0:00:46]} 59. Nd3 {[%clk 0:00:13]}  Nd2+ {[%clk 0:00:46]} 60. Kc1 {[%clk 0:00:14]}  a5 {[%clk 0:00:45]} 61. b4 {[%clk 0:00:12]}  Ne4 {[%clk 0:00:42]} 62. bxa5 {[%clk 0:00:12]}  bxa5 {[%clk 0:00:43]} 63. Kb1 {[%clk 0:00:12]}  Nc5 {[%clk 0:00:35]} 64. Nf4+ {[%clk 0:00:05]}  Kc4 {[%clk 0:00:34]} 65. Ka2 {[%clk 0:00:05]}  Nxa4 {[%clk 0:00:35]} 66. Ne6 {[%clk 0:00:05]}  c5 {[%clk 0:00:34]} 67. Ka3 {[%clk 0:00:05]}  Nb6 {[%clk 0:00:34]} 68. Nf4 {[%clk 0:00:04]}  Nd5 {[%clk 0:00:28]} 69. Nd3 {[%clk 0:00:04]}  Ne3 {[%clk 0:00:25]} 70. Ne1 {[%clk 0:00:05]}  Kb5 {[%clk 0:00:21]} 71. Kb3 {[%clk 0:00:05]}  Nd5 {[%clk 0:00:21]} 72. Nf3 {[%clk 0:00:06]}  a4+ {[%clk 0:00:20]} 73. Ka3 {[%clk 0:00:06]}  Ne3 {[%clk 0:00:20]} 74. Ne1 {[%clk 0:00:05]}  Ka5 {[%clk 0:00:20]} 75. Ka2 {[%clk 0:00:01]}  Kb6 {[%clk 0:00:21]} 0-1


[Site "https://www.chess.com"]

[Event "Titled Tuesday Blitz December 27 Late 2022"]
[White "Karas, Marek"]
[Black "Andrews, Todd"]
[WhiteFideId "14928558"]
[BlackFideId "2012456"]
[WhiteElo "2227"]
[BlackElo "2220"]
[Result "1-0"]
[Round "07"]
[TimeControl "180+2"]
[Date "2022.12.27"]
[WhiteClock "0:00:12"]
[BlackClock "0:00:12"]

1. e4 {[%clk 0:02:59]}  c5 {[%clk 0:03:00]} 2. Nc3 {[%clk 0:02:59]}  d6 {[%clk 0:03:00]} 3. f4 {[%clk 0:02:59]}  Nc6 {[%clk 0:02:59]} 4. Nf3 {[%clk 0:03:00]}  g6 {[%clk 0:02:58]} 5. Bc4 {[%clk 0:03:00]}  Bg7 {[%clk 0:02:59]} 6. O-O {[%clk 0:03:00]}  e6 {[%clk 0:02:56]} 7. d3 {[%clk 0:02:59]}  Nge7 {[%clk 0:02:55]} 8. Qe1 {[%clk 0:03:00]}  Nd4 {[%clk 0:02:54]} 9. Nxd4 {[%clk 0:02:58]}  cxd4 {[%clk 0:02:54]} 10. Ne2 {[%clk 0:02:58]}  O-O {[%clk 0:02:53]} 11. Bb3 {[%clk 0:02:58]}  f5 {[%clk 0:02:35]} 12. Ng3 {[%clk 0:02:44]}  Kh8 {[%clk 0:02:34]} 13. exf5 {[%clk 0:02:37]}  Nxf5 {[%clk 0:02:29]} 14. Nxf5 {[%clk 0:02:14]}  gxf5 {[%clk 0:02:25]} 15. Bd2 {[%clk 0:02:03]}  Bd7 {[%clk 0:02:21]} 16. Qe2 {[%clk 0:01:49]}  Rf6 {[%clk 0:02:16]} 17. Rae1 {[%clk 0:01:42]}  Rg6 {[%clk 0:02:14]} 18. Qh5 {[%clk 0:01:34]}  Qf6 {[%clk 0:01:35]} 19. Rf3 {[%clk 0:01:22]}  Rg8 {[%clk 0:01:17]} 20. Rg3 {[%clk 0:01:19]}  Rxg3 {[%clk 0:01:12]} 21. hxg3 {[%clk 0:01:18]}  Bf8 {[%clk 0:01:08]} 22. Kf2 {[%clk 0:01:08]}  Qg7 {[%clk 0:01:03]} 23. Qh3 {[%clk 0:01:03]}  Qf6 {[%clk 0:00:42]} 24. Rh1 {[%clk 0:00:58]}  Rg7 {[%clk 0:00:42]} 25. Qh4 {[%clk 0:00:54]}  Qg6 {[%clk 0:00:38]} 26. c3 {[%clk 0:00:48]}  Be7 {[%clk 0:00:37]} 27. Qh3 {[%clk 0:00:44]}  Bf6 {[%clk 0:00:37]} 28. Re1 {[%clk 0:00:40]}  e5 {[%clk 0:00:30]} 29. cxd4 {[%clk 0:00:32]}  exf4 {[%clk 0:00:30]} 30. Bxf4 {[%clk 0:00:22]}  Bxd4+ {[%clk 0:00:30]} 31. Kf1 {[%clk 0:00:21]}  Bc6 {[%clk 0:00:27]} 32. Re6 {[%clk 0:00:17]}  Qf7 {[%clk 0:00:13]} 33. Qh4 {[%clk 0:00:15]}  Qf8 {[%clk 0:00:09]} 34. Bh6 {[%clk 0:00:12]}  Be5 {[%clk 0:00:07]} 35. Bxg7+ {[%clk 0:00:10]}  Qxg7 {[%clk 0:00:07]} 36. Qd8+ {[%clk 0:00:09]}  Qg8 {[%clk 0:00:08]} 37. Qe7 {[%clk 0:00:04]}  Qxg3 {[%clk 0:00:04]} 38. Qf8+ {[%clk 0:00:03]}  Qg8 {[%clk 0:00:04]} 39. Qxg8+ {[%clk 0:00:04]}  Kxg8 {[%clk 0:00:05]} 40. Rxe5+ {[%clk 0:00:04]}  Kg7 {[%clk 0:00:05]} 41. Rxf5 {[%clk 0:00:03]}  Kg6 {[%clk 0:00:05]} 42. Rf8 {[%clk 0:00:03]}  a5 {[%clk 0:00:06]} 43. Rg8+ {[%clk 0:00:04]}  Kf5 {[%clk 0:00:05]} 44. Rb8 {[%clk 0:00:04]}  a4 {[%clk 0:00:04]} 45. Bc4 {[%clk 0:00:05]}  Ke5 {[%clk 0:00:05]} 46. Ke1 {[%clk 0:00:05]}  Kd4 {[%clk 0:00:06]} 47. Kd2 {[%clk 0:00:05]}  Bxg2 {[%clk 0:00:05]} 48. Bg8 {[%clk 0:00:05]}  h5 {[%clk 0:00:05]} 49. Be6 {[%clk 0:00:05]}  h4 {[%clk 0:00:05]} 50. Rh8 {[%clk 0:00:05]}  Ke5 {[%clk 0:00:05]} 51. Bg4 {[%clk 0:00:04]}  Kf4 {[%clk 0:00:05]} 52. Bc8 {[%clk 0:00:04]}  Kg3 {[%clk 0:00:05]} 53. Rg8+ {[%clk 0:00:05]}  Kf2 {[%clk 0:00:04]} 54. Rxg2+ {[%clk 0:00:05]}  Kxg2 {[%clk 0:00:05]} 55. Bxb7+ {[%clk 0:00:05]}  Kf2 {[%clk 0:00:03]} 56. Kc3 {[%clk 0:00:05]}  Ke3 {[%clk 0:00:04]} 57. b3 {[%clk 0:00:06]}  axb3 {[%clk 0:00:02]} 58. axb3 {[%clk 0:00:07]}  h3 {[%clk 0:00:02]} 59. Bc6 {[%clk 0:00:07]}  h2 {[%clk 0:00:03]} 60. b4 {[%clk 0:00:07]}  d5 {[%clk 0:00:02]} 61. Bxd5 {[%clk 0:00:07]}  Kf4 {[%clk 0:00:03]} 62. Bh1 {[%clk 0:00:07]}  Ke5 {[%clk 0:00:03]} 63. b5 {[%clk 0:00:07]}  Kd6 {[%clk 0:00:04]} 64. b6 {[%clk 0:00:07]}  Kd7 {[%clk 0:00:04]} 65. b7 {[%clk 0:00:08]}  Kc7 {[%clk 0:00:04]} 66. Kd2 {[%clk 0:00:08]}  Kb8 {[%clk 0:00:05]} 67. Ke3 {[%clk 0:00:08]}  Kc7 {[%clk 0:00:06]} 68. Kf2 {[%clk 0:00:09]}  Kb8 {[%clk 0:00:07]} 69. Kg3 {[%clk 0:00:09]}  Kc7 {[%clk 0:00:08]} 70. Kxh2 {[%clk 0:00:10]}  Kb8 {[%clk 0:00:09]} 71. Kg3 {[%clk 0:00:10]}  Kc7 {[%clk 0:00:10]} 72. Kf4 {[%clk 0:00:11]}  Kb8 {[%clk 0:00:11]} 73. Ke5 {[%clk 0:00:11]}  Kc7 {[%clk 0:00:12]} 74. Ke6 {[%clk 0:00:11]}  Kb8 {[%clk 0:00:12]} 75. Kd7 {[%clk 0:00:12]} 1-0


[Site "https://www.chess.com"]

[Event "Titled Tuesday Blitz December 27 Late 2022"]
[White "Kozin, Yuri"]
[Black "Corredor Castellanos, Camilo"]
[WhiteFideId "4129920"]
[BlackFideId "4425871"]
[WhiteElo "2251"]
[BlackElo "1957"]
[Result "1-0"]
[Round "07"]
[TimeControl "180+2"]
[Date "2022.12.27"]
[WhiteClock "0:00:14"]
[BlackClock "0:00:04"]

1. e4 {[%clk 0:03:00]}  c5 {[%clk 0:02:59]} 2. Nf3 {[%clk 0:03:00]}  d6 {[%clk 0:03:00]} 3. d4 {[%clk 0:03:01]}  cxd4 {[%clk 0:03:01]} 4. Nxd4 {[%clk 0:03:02]}  Nf6 {[%clk 0:03:01]} 5. Nc3 {[%clk 0:03:02]}  a6 {[%clk 0:03:01]} 6. Be3 {[%clk 0:03:03]}  b5 {[%clk 0:02:57]} 7. a4 {[%clk 0:02:53]}  b4 {[%clk 0:02:57]} 8. Nd5 {[%clk 0:02:53]}  e6 {[%clk 0:02:47]} 9. Nxf6+ {[%clk 0:02:43]}  gxf6 {[%clk 0:02:48]} 10. a5 {[%clk 0:02:37]}  Bb7 {[%clk 0:02:43]} 11. Bd3 {[%clk 0:02:34]}  Nd7 {[%clk 0:02:41]} 12. Nb3 {[%clk 0:02:32]}  h5 {[%clk 0:02:39]} 13. Qd2 {[%clk 0:02:32]}  Rc8 {[%clk 0:02:34]} 14. O-O-O {[%clk 0:02:25]}  Ne5 {[%clk 0:02:33]} 15. Kb1 {[%clk 0:02:23]}  Nc6 {[%clk 0:02:15]} 16. Bb6 {[%clk 0:02:23]}  Qe7 {[%clk 0:02:11]} 17. Qe2 {[%clk 0:02:22]}  Ra8 {[%clk 0:02:08]} 18. f4 {[%clk 0:02:22]}  h4 {[%clk 0:02:01]} 19. f5 {[%clk 0:02:18]}  e5 {[%clk 0:01:37]} 20. Bc4 {[%clk 0:02:15]}  Rg8 {[%clk 0:01:11]} 21. Rhg1 {[%clk 0:02:06]}  Rg5 {[%clk 0:00:58]} 22. g3 {[%clk 0:02:03]}  h3 {[%clk 0:00:56]} 23. g4 {[%clk 0:01:58]}  Nd4 {[%clk 0:00:45]} 24. Nxd4 {[%clk 0:01:50]}  exd4 {[%clk 0:00:46]} 25. Rxd4 {[%clk 0:01:51]}  Qe5 {[%clk 0:00:41]} 26. Bd5 {[%clk 0:01:40]}  Bxd5 {[%clk 0:00:38]} 27. Rxd5 {[%clk 0:01:41]}  Qf4 {[%clk 0:00:36]} 28. Qc4 {[%clk 0:01:39]}  Be7 {[%clk 0:00:24]} 29. Qc6+ {[%clk 0:01:37]}  Kf8 {[%clk 0:00:25]} 30. Qxa8+ {[%clk 0:01:37]}  Kg7 {[%clk 0:00:26]} 31. Qe8 {[%clk 0:01:32]}  Bf8 {[%clk 0:00:25]} 32. Rdd1 {[%clk 0:00:49]}  Qxh2 {[%clk 0:00:25]} 33. Rh1 {[%clk 0:00:45]}  Qe2 {[%clk 0:00:23]} 34. Bd8 {[%clk 0:00:37]}  b3 {[%clk 0:00:21]} 35. cxb3 {[%clk 0:00:36]}  h2 {[%clk 0:00:19]} 36. Rde1 {[%clk 0:00:27]}  Qd3+ {[%clk 0:00:19]} 37. Ka2 {[%clk 0:00:27]}  Rxg4 {[%clk 0:00:14]} 38. Rxh2 {[%clk 0:00:26]}  Rg3 {[%clk 0:00:13]} 39. Qa4 {[%clk 0:00:25]}  d5 {[%clk 0:00:10]} 40. exd5 {[%clk 0:00:20]}  Bd6 {[%clk 0:00:11]} 41. Reh1 {[%clk 0:00:17]}  Qxf5 {[%clk 0:00:07]} 42. Rh7+ {[%clk 0:00:18]}  Kg8 {[%clk 0:00:06]} 43. Rh8+ {[%clk 0:00:17]}  Kg7 {[%clk 0:00:05]} 44. R1h7+ {[%clk 0:00:17]}  Qxh7 {[%clk 0:00:06]} 45. Rxh7+ {[%clk 0:00:17]}  Kxh7 {[%clk 0:00:07]} 46. Bxf6 {[%clk 0:00:16]}  Rg1 {[%clk 0:00:04]} 47. Qh4+ {[%clk 0:00:16]}  Kg6 {[%clk 0:00:04]} 48. Be7 {[%clk 0:00:14]}  Be5 {[%clk 0:00:04]} 49. Qe4+ {[%clk 0:00:14]} 1-0


[Site "https://www.chess.com"]

[Event "Titled Tuesday Blitz December 27 Late 2022"]
[White "Kravtsiv, Martyn"]
[Black "Djokic, Mihailo"]
[WhiteFideId "14113147"]
[BlackFideId "976440"]
[WhiteElo "2598"]
[BlackElo "2192"]
[Result "1-0"]
[Round "07"]
[TimeControl "180+2"]
[Date "2022.12.27"]
[WhiteClock "0:00:17"]
[BlackClock "0:00:02"]

1. e4 {[%clk 0:03:00]}  c5 {[%clk 0:02:59]} 2. Nf3 {[%clk 0:03:00]}  d6 {[%clk 0:03:00]} 3. Bb5+ {[%clk 0:02:59]}  Bd7 {[%clk 0:02:59]} 4. Bxd7+ {[%clk 0:02:59]}  Qxd7 {[%clk 0:02:59]} 5. c4 {[%clk 0:02:58]}  Nc6 {[%clk 0:02:57]} 6. Nc3 {[%clk 0:02:58]}  g6 {[%clk 0:02:56]} 7. d4 {[%clk 0:02:57]}  cxd4 {[%clk 0:02:56]} 8. Nxd4 {[%clk 0:02:58]}  Bg7 {[%clk 0:02:56]} 9. Be3 {[%clk 0:02:58]}  Nf6 {[%clk 0:02:56]} 10. f3 {[%clk 0:02:58]}  O-O {[%clk 0:02:55]} 11. O-O {[%clk 0:02:58]}  Rfd8 {[%clk 0:02:54]} 12. Qd3 {[%clk 0:02:53]}  e6 {[%clk 0:02:54]} 13. Rad1 {[%clk 0:02:48]}  d5 {[%clk 0:02:44]} 14. cxd5 {[%clk 0:02:47]}  exd5 {[%clk 0:02:44]} 15. Nxc6 {[%clk 0:02:47]}  bxc6 {[%clk 0:02:43]} 16. e5 {[%clk 0:02:48]}  Ne8 {[%clk 0:02:36]} 17. f4 {[%clk 0:02:48]}  f6 {[%clk 0:02:35]} 18. Bc5 {[%clk 0:02:40]}  Nc7 {[%clk 0:02:07]} 19. exf6 {[%clk 0:02:05]}  Bxf6 {[%clk 0:02:06]} 20. f5 {[%clk 0:02:05]}  Qg7 {[%clk 0:01:39]} 21. fxg6 {[%clk 0:02:04]}  hxg6 {[%clk 0:01:38]} 22. Qf3 {[%clk 0:01:49]}  Be5 {[%clk 0:01:32]} 23. Qg4 {[%clk 0:01:47]}  Re8 {[%clk 0:01:29]} 24. Rde1 {[%clk 0:01:31]}  Re6 {[%clk 0:01:16]} 25. Kh1 {[%clk 0:01:26]}  Rae8 {[%clk 0:01:15]} 26. Nd1 {[%clk 0:01:19]}  Bxh2 {[%clk 0:01:09]} 27. Rxe6 {[%clk 0:01:11]}  Nxe6 {[%clk 0:01:10]} 28. Bxa7 {[%clk 0:01:07]}  Be5 {[%clk 0:00:55]} 29. Re1 {[%clk 0:01:04]}  Nf4 {[%clk 0:00:49]} 30. g3 {[%clk 0:00:54]}  Nd3 {[%clk 0:00:30]} 31. Re2 {[%clk 0:00:51]}  Rf8 {[%clk 0:00:25]} 32. Kg2 {[%clk 0:00:49]}  Qxa7 {[%clk 0:00:19]} 33. Qxg6+ {[%clk 0:00:48]}  Qg7 {[%clk 0:00:19]} 34. Qxd3 {[%clk 0:00:48]}  Qf6 {[%clk 0:00:14]} 35. Rf2 {[%clk 0:00:47]}  Qg7 {[%clk 0:00:13]} 36. Rxf8+ {[%clk 0:00:45]}  Kxf8 {[%clk 0:00:14]} 37. Qf5+ {[%clk 0:00:44]}  Ke7 {[%clk 0:00:13]} 38. b3 {[%clk 0:00:43]}  Qxg3+ {[%clk 0:00:13]} 39. Kf1 {[%clk 0:00:42]}  Kd6 {[%clk 0:00:12]} 40. Ke2 {[%clk 0:00:38]}  Qg2+ {[%clk 0:00:11]} 41. Nf2 {[%clk 0:00:38]}  d4 {[%clk 0:00:08]} 42. Kd3 {[%clk 0:00:37]}  Qg3+ {[%clk 0:00:07]} 43. Ke2 {[%clk 0:00:35]}  Qe3+ {[%clk 0:00:07]} 44. Kf1 {[%clk 0:00:35]}  Qc1+ {[%clk 0:00:07]} 45. Kg2 {[%clk 0:00:35]}  Qd2 {[%clk 0:00:07]} 46. Kf3 {[%clk 0:00:32]}  Qe3+ {[%clk 0:00:07]} 47. Kg4 {[%clk 0:00:31]}  Qe2+ {[%clk 0:00:07]} 48. Kg5 {[%clk 0:00:29]}  Qe3+ {[%clk 0:00:04]} 49. Kg6 {[%clk 0:00:29]}  Qg3+ {[%clk 0:00:04]} 50. Kh5 {[%clk 0:00:28]}  Qh2+ {[%clk 0:00:03]} 51. Kg5 {[%clk 0:00:26]}  Qg2+ {[%clk 0:00:02]} 52. Ng4 {[%clk 0:00:25]}  Qd2+ {[%clk 0:00:02]} 53. Kg6 {[%clk 0:00:25]}  Qf4 {[%clk 0:00:03]} 54. a4 {[%clk 0:00:19]}  Qxf5+ {[%clk 0:00:02]} 55. Kxf5 {[%clk 0:00:20]}  Bg7 {[%clk 0:00:01]} 56. Ke4 {[%clk 0:00:19]}  Kc5 {[%clk 0:00:01]} 57. Nf2 {[%clk 0:00:17]}  Kb4 {[%clk 0:00:02]} 58. Nd3+ {[%clk 0:00:17]}  Kxb3 {[%clk 0:00:02]} 59. a5 {[%clk 0:00:17]}  Kc4 {[%clk 0:00:01]} 60. a6 {[%clk 0:00:17]}  Be5 {[%clk 0:00:01]} 61. a7 {[%clk 0:00:17]}  Bb8 {[%clk 0:00:02]} 1-0


[Site "https://www.chess.com"]

[Event "Titled Tuesday Blitz December 27 Late 2022"]
[White "Lenderman, Aleksandr"]
[Black "Sourath Biswas"]
[WhiteFideId "2021285"]
[BlackFideId "35091484"]
[WhiteElo "2572"]
[BlackElo "2281"]
[Result "1-0"]
[Round "07"]
[TimeControl "180+2"]
[Date "2022.12.27"]
[WhiteClock "0:00:03"]
[BlackClock "0:00:05"]

1. Nf3 {[%clk 0:03:00]}  Nf6 {[%clk 0:02:58]} 2. c4 {[%clk 0:03:00]}  g6 {[%clk 0:02:58]} 3. Nc3 {[%clk 0:03:00]}  Bg7 {[%clk 0:02:58]} 4. e4 {[%clk 0:03:01]}  O-O {[%clk 0:02:59]} 5. d4 {[%clk 0:03:01]}  d6 {[%clk 0:02:45]} 6. Be2 {[%clk 0:03:01]}  e5 {[%clk 0:02:45]} 7. O-O {[%clk 0:03:01]}  Nbd7 {[%clk 0:02:44]} 8. Be3 {[%clk 0:03:00]}  Qe7 {[%clk 0:02:43]} 9. d5 {[%clk 0:02:58]}  c5 {[%clk 0:02:39]} 10. Bg5 {[%clk 0:02:58]}  h6 {[%clk 0:02:36]} 11. Bd2 {[%clk 0:02:55]}  Kh7 {[%clk 0:02:31]} 12. a3 {[%clk 0:02:53]}  Ng8 {[%clk 0:02:27]} 13. g3 {[%clk 0:02:50]}  f5 {[%clk 0:02:27]} 14. exf5 {[%clk 0:02:50]}  gxf5 {[%clk 0:02:26]} 15. Nh4 {[%clk 0:02:51]}  e4 {[%clk 0:02:01]} 16. Bh5 {[%clk 0:02:48]}  Ne5 {[%clk 0:02:01]} 17. f4 {[%clk 0:02:44]}  exf3 {[%clk 0:02:00]} 18. Bf4 {[%clk 0:02:38]}  Nf6 {[%clk 0:01:54]} 19. Bxf3 {[%clk 0:02:35]}  Nxc4 {[%clk 0:01:51]} 20. Re1 {[%clk 0:02:33]}  Ne5 {[%clk 0:01:50]} 21. Bxe5 {[%clk 0:02:33]}  dxe5 {[%clk 0:01:51]} 22. d6 {[%clk 0:02:33]}  Qe6 {[%clk 0:01:51]} 23. Nb5 {[%clk 0:02:32]}  e4 {[%clk 0:01:48]} 24. Nc7 {[%clk 0:02:31]}  Qf7 {[%clk 0:01:33]} 25. Be2 {[%clk 0:02:29]}  Rb8 {[%clk 0:01:25]} 26. Qc2 {[%clk 0:02:27]}  Ne8 {[%clk 0:01:07]} 27. Qxc5 {[%clk 0:02:23]}  b6 {[%clk 0:00:52]} 28. Qb4 {[%clk 0:02:13]}  Nxc7 {[%clk 0:00:47]} 29. dxc7 {[%clk 0:02:14]}  Qxc7 {[%clk 0:00:48]} 30. Rac1 {[%clk 0:02:13]}  Qe5 {[%clk 0:00:46]} 31. Red1 {[%clk 0:02:10]}  Be6 {[%clk 0:00:36]} 32. Bc4 {[%clk 0:02:07]}  Rbc8 {[%clk 0:00:32]} 33. Bxe6 {[%clk 0:02:05]}  Qxe6 {[%clk 0:00:27]} 34. Rxc8 {[%clk 0:02:04]}  Rxc8 {[%clk 0:00:28]} 35. Qb5 {[%clk 0:02:04]}  Rf8 {[%clk 0:00:22]} 36. Rd7 {[%clk 0:01:58]}  Kg8 {[%clk 0:00:20]} 37. Rxa7 {[%clk 0:01:56]}  Bd4+ {[%clk 0:00:19]} 38. Kg2 {[%clk 0:01:55]}  f4 {[%clk 0:00:19]} 39. Ng6 {[%clk 0:00:50]}  f3+ {[%clk 0:00:15]} 40. Kh1 {[%clk 0:00:50]}  Qxg6 {[%clk 0:00:04]} 41. Qd5+ {[%clk 0:00:48]}  Rf7 {[%clk 0:00:03]} 42. Ra8+ {[%clk 0:00:48]}  Kh7 {[%clk 0:00:03]} 43. Qxd4 {[%clk 0:00:48]}  Rg7 {[%clk 0:00:03]} 44. Rf8 {[%clk 0:00:39]}  e3 {[%clk 0:00:02]} 45. Qxe3 {[%clk 0:00:39]}  Qb1+ {[%clk 0:00:02]} 46. Qg1 {[%clk 0:00:39]}  Qxb2 {[%clk 0:00:03]} 47. Rxf3 {[%clk 0:00:38]}  Rc7 {[%clk 0:00:02]} 48. Rf1 {[%clk 0:00:16]}  Qxa3 {[%clk 0:00:02]} 49. Qg2 {[%clk 0:00:15]}  Qe7 {[%clk 0:00:03]} 50. Qf3 {[%clk 0:00:13]}  Qg7 {[%clk 0:00:02]} 51. Qe4+ {[%clk 0:00:12]}  Qg6 {[%clk 0:00:02]} 52. Qd4 {[%clk 0:00:10]}  Qc6+ {[%clk 0:00:03]} 53. Kg1 {[%clk 0:00:10]}  Qc5 {[%clk 0:00:03]} 54. Qxc5 {[%clk 0:00:11]}  bxc5 {[%clk 0:00:04]} 55. Rc1 {[%clk 0:00:10]}  Kg6 {[%clk 0:00:05]} 56. Rc4 {[%clk 0:00:09]}  Kf5 {[%clk 0:00:06]} 57. Kf2 {[%clk 0:00:09]}  Ke5 {[%clk 0:00:07]} 58. Ke3 {[%clk 0:00:09]}  Kd5 {[%clk 0:00:08]} 59. Rh4 {[%clk 0:00:09]}  Ra7 {[%clk 0:00:08]} 60. Rxh6 {[%clk 0:00:06]}  Ra3+ {[%clk 0:00:09]} 61. Kf4 {[%clk 0:00:06]}  c4 {[%clk 0:00:09]} 62. Rh8 {[%clk 0:00:06]}  c3 {[%clk 0:00:09]} 63. Rd8+ {[%clk 0:00:05]}  Ke6 {[%clk 0:00:10]} 64. Rc8 {[%clk 0:00:05]}  Kf6 {[%clk 0:00:08]} 65. Rc6+ {[%clk 0:00:04]}  Kg7 {[%clk 0:00:08]} 66. h4 {[%clk 0:00:05]}  Ra4+ {[%clk 0:00:08]} 67. Kg5 {[%clk 0:00:04]}  Ra5+ {[%clk 0:00:08]} 68. Kg4 {[%clk 0:00:05]}  Ra4+ {[%clk 0:00:09]} 69. Kh3 {[%clk 0:00:05]}  Ra3 {[%clk 0:00:10]} 70. h5 {[%clk 0:00:05]}  Ra5 {[%clk 0:00:10]} 71. Kh4 {[%clk 0:00:05]}  Ra3 {[%clk 0:00:09]} 72. g4 {[%clk 0:00:05]}  Kf7 {[%clk 0:00:10]} 73. h6 {[%clk 0:00:04]}  c2 {[%clk 0:00:05]} 74. Rxc2 {[%clk 0:00:04]}  Ra6 {[%clk 0:00:06]} 75. Kh5 {[%clk 0:00:03]}  Ra5+ {[%clk 0:00:05]} 76. g5 {[%clk 0:00:03]} 1-0


[Site "https://www.chess.com"]